[Event "Charlotte IM-C May 2022"]
[Site "Charlotte"]
[Date "2022.05.08"]
[Round "9.2"]
[White "Rorrer, Grayson"]
[Black "Andrews, Todd"]
[Result "1-0"]
[ECO "C04"]
[WhiteElo "2204"]
[BlackElo "2209"]
[Annotator "TA"]
[PlyCount "61"]
[EventDate "2022.05.04"]
[EventType "tourn"]
[EventCountry "USA"]
[SourceTitle "playchess.com"]
[Source "ChessBase"]
[SourceQuality "1"]
[TimeControl "5400+30"]

{[%evp 18,61,63,59,118,44,30,-62,-33,-156,-144,-182,-162,-223,-155,-233,0,0,167,121,256,245,403,402,429,410,587,583,670,660,1677,897,1231,800,938,931,884,843,747,570,1148,1148,1148,1148,1114,910]} 1. e4 {[%emt 0:00:03]} e6 {[%emt 0:04:10]} 2. d4 {[%emt 0:00:06]} d5 {[%emt 0:00:06]} 3. Nd2 {[%emt 0:00:05]} Nc6 {[%emt 0:00:11]} 4. Ngf3 {[%emt 0:00:07]} Nf6 {[%emt 0:00:07]} 5. e5 {[%emt 0:00:04]} Nd7 {[%emt 0:00:09]} 6. Be2 {[%emt 0:00:10]} f6 {[%emt 0:00:20]} 7. exf6 {[%emt 0:00:08]} Qxf6 {[%emt 0:00:07]} 8. Nf1 {[%emt 0:00:06]} Bd6 {[%emt 0:00:24]} 9. Ne3 {[%emt 0:00:08]} O-O {[%emt 0:02:13]} 10. O-O {[%emt 0:00:19]} Nb6 {[%emt 0:00:14] C04: French Tarrasch: 3...Nc6.} (10... Qf7 $14) 11. h3 {[%emt 0:05:58]} (11. Ng4 $16 Qg6 12. Nge5) 11... e5 $1 $14 {[%emt 0:11:35] [#]} 12. dxe5 $146 {[%emt 0:02:53]} (12. Nxd5 $1 $11 Nxd5 13. dxe5 Nxe5 14. Qxd5+ Be6 15. Qxb7) ({Predecessor:} 12. Nxd5 Nxd5 13. dxe5 Nxe5 14. Qxd5+ Be6 15. Qxb7 c6 16. Ng5 Bd5 17. f4 Ng6 18. c4 Qd4+ 19. Kh1 Bxc4 20. Rd1 Qc5 21. b4 {1-0 (21) Efimenko,Z (2245)-Kapturowski,G Istanbul 1998}) 12... Nxe5 $15 {[%emt 0:00:17] Black is slightly better.} 13. Nxd5 {[%emt 0:15:14]} (13. Nd4 $15) 13... Nxf3+ $17 {[%emt 0:00:30][%mdl 64] Remove Defender} 14. Bxf3 {[%emt 0:00:19]} Qe5 {[%emt 0:00:21][%csl Gd6][%cal Re5h2]} 15. Re1 {[%emt 0:00:10]} (15. Bf4 {might work better.} Rxf4 16. Nxf4 Qxf4 17. g3) 15... Qh2+ $19 {[%emt 0:00:12]} 16. Kf1 {[%emt 0:00:03] [#]} Bxh3 $2 {[%emt 0:06:54]} 17. gxh3 $11 {[%emt 0:04:07] Qe2 is the strong threat.} Qxh3+ $2 {[%emt 0:00:42]} (17... c6 $11 {and Black stays safe.} 18. Nxb6 Qxh3+ 19. Bg2 Rxf2+ 20. Kxf2 Rf8+ 21. Ke2 (21. Bf3 $2 Qg3+ 22. Ke3 Bc5+ 23. Kd3 Rd8+ 24. Kc4 Rxd1 $19) 21... Re8+ 22. Kf1 Rf8+ 23. Ke2 (23. Bf4 $2 Rxf4+ 24. Ke2 Qxg2+ 25. Kd3 Qg6+ 26. Ke3 Qg5 $19) 23... Re8+ 24. Kf1 Rf8+ 25. Ke2 (25. Bf4 $2 Rxf4+ 26. Ke2 Qxg2+ 27. Kd3 Qg6+ 28. Kd2 Rd4+ 29. Kc1 Rxd1+ 30. Rxd1 axb6 $19)) 18. Bg2 $18 {[%emt 0:00:08]} Qh4 {[%emt 0:12:34] This costs Black the game.} (18... Rxf2+ $16 19. Kxf2 Qg3+ 20. Kf1 Rf8+ 21. Bf4 Bxf4 22. Ne7+ Kh8) 19. Be3 {[%emt 0:05:30][%cal Bc1e3,Be3f4,Bf4h2][%mdl 32] Strongly threatening Qd4.} Rae8 $2 {[%emt 0:02:27]} (19... Bg3 {was called for.} 20. Re2 Rad8) 20. Qd4 {[%emt 0:00:55]} Qh2 {[%emt 0:04:20]} 21. Qg4 {[%emt 0:05:40] aiming for Bd4.} ({Much less strong is} 21. Nxb6 axb6 22. Qd5+ Kh8 $18) 21... Kh8 {[%emt 0:02:38] [#]} (21... h5 $142 22. Qg6 Qh4) 22. Bf4 $1 {[%emt 0:02:44][%mdl 512] White is clearly winning.} Rxe1+ {[%emt 0:08:21]} (22... Bxf4 23. Nxf4) 23. Rxe1 {[%emt 0:00:23]} Bc5 {[%emt 0:00:43]} 24. Bxh2 {[%emt 0:00:10]} Rxf2+ {[%emt 0:00:07]} 25. Kg1 {[%emt 0:00:04]} Re2+ {[%emt 0:00:07]} 26. Kh1 {[%emt 0:00:59][%cal Bg1h1,Bh1h2,Bh2h3][%mdl 32]} Rxe1+ {[%emt 0:00:03] [#]} 27. Bg1 $1 {[%emt 0:00:30]} Bxg1 {[%emt 0:00:56]} 28. Nxb6 {[%emt 0:00:25]} Bc5+ {[%emt 0:00:28]} 29. Kh2 {[%emt 0:00:29] Qc8+ would kill now.} Bd6+ {[%emt 0:00:01]} 30. Kh3 {[%emt 0:00:17] Threatening mate with Qc8+.} Re3+ {[%emt 0:00:03]} 31. Bf3 {[%emt 0:00:05] Weighted Error Value: White=0.52/Black=0.85} ({But not} 31. Kh4 $2 Be7+ 32. Qg5 Bxg5+ 33. Kxg5 Rg3+ 34. Kf5 Rxg2 $19) 1-0

[Event "Charlotte IM-C May 2022"]
[Site "Charlotte"]
[Date "2022.05.08"]
[Round "9.4"]
[White "Zapata, Alonso"]
[Black "Andrianov, Nikolai"]
[Result "1/2-1/2"]
[ECO "B76"]
[WhiteElo "2367"]
[BlackElo "2317"]
[Annotator "TA"]
[PlyCount "39"]
[EventDate "2022.05.04"]
[EventType "tourn"]
[EventCountry "USA"]
[SourceTitle "playchess.com"]
[Source "ChessBase"]
[SourceQuality "1"]
[TimeControl "5400+30"]

{[%evp 16,39,16,25,39,-2,46,24,34,0,12,0,8,-14,66,61,64,0,85,22,35,22,9,13,8,0]} 1. e4 {[%emt 0:04:13]} c5 {[%emt 0:00:03]} 2. Nf3 {[%emt 0:00:07]} Nc6 {[%emt 1:31:27]} 3. d4 {[%emt 0:00:10]} cxd4 {[%emt 0:00:00]} 4. Nxd4 {[%emt 0:00:07]} g6 {[%emt 0:00:00]} 5. Nc3 {[%emt 0:00:27]} Bg7 {[%emt 0:00:00]} 6. Be3 {[%emt 0:00:09]} Nf6 {[%emt 0:00:00]} 7. Bc4 {[%emt 0:00:09]} O-O {[%emt 0:00:00]} 8. Bb3 {[%emt 0:00:07]} d6 {[%emt 0:00:00]} 9. f3 {[%emt 0:00:12]} Na5 {[%emt 0:00:00] B76: Sicilian Dragon: Yugoslav Attack, 9 g4 and 9 0-0-0.} 10. g4 {[%emt 1:29:49]} Bd7 {[%emt 0:00:00]} (10... d5 $11) 11. h4 {[%emt 0:00:00]} Nxb3 {[%emt 0:00:00] White has an edge.} 12. axb3 {[%emt 0:00:00]} (12. cxb3 $5 {[%cal Rh4h5]} h5 13. g5 $11) 12... h5 {[%emt 0:00:00][%cal Rh5g4]} 13. gxh5 {[%emt 0:00:00]} Nxh5 {[%emt 0:00:00][%cal Ob7b5]} 14. Qd2 {[%emt 0:00:00]} a6 {[%emt 0:00:00]} ({Better is} 14... b5 $11) 15. Bh6 {[%emt 0:00:00] [#]} Rc8 $146 {[%emt 0:00:00]} ({Predecessor:} 15... e5 16. Nde2 Qf6 17. Bxg7 Kxg7 18. O-O-O Be6 19. Qxd6 Rad8 20. Qc7 b5 21. Rhf1 Bh3 {½-½ (37) Laube,B (2376)-Cijs,P (2377) ICCF email 2010}) 16. Nde2 {[%emt 0:00:00] White is more active.} (16. O-O-O $14) 16... Rc5 {[%emt 0:00:00]} (16... Bb5 $11) 17. Rg1 {[%emt 0:00:00]} ({White should play} 17. O-O-O $16) 17... Ra5 $11 {[%emt 0:00:00]} 18. Rd1 {[%emt 0:00:00]} Bc6 {[%emt 0:00:00]} 19. b4 {[%emt 0:00:00]} Re5 {[%emt 0:00:00]} 20. Bxg7 {[%emt 0:00:00] Weighted Error Value: White=0.27 (precise) /Black=0.28 (precise)} 1/2-1/2

[Event "Charlotte IM-C May 2022"]
[Site "Charlotte"]
[Date "2022.05.08"]
[Round "9.5"]
[White "Johnson, Donald"]
[Black "Wang, Tianqi"]
[Result "1/2-1/2"]
[ECO "B12"]
[WhiteElo "2102"]
[BlackElo "2331"]
[Annotator "TA"]
[PlyCount "93"]
[EventDate "2022.05.04"]
[EventType "tourn"]
[EventCountry "USA"]
[SourceTitle "playchess.com"]
[Source "ChessBase"]
[SourceQuality "1"]
[TimeControl "5400+30"]

{[%evp 13,93,21,22,22,39,0,0,4,11,0,9,0,0,0,19,10,22,0,27,0,0,-37,22,20,20,22,54,38,41,53,37,42,47,54,60,25,26,28,34,0,0,-8,0,-10,0,0,0,0,0,0,0,0,0,0,0,0,0,0,0,0,0,0,0,0,0,0,0,0,0,0,0,0,0,0,0,0,0,0,0,0,0,0]} 1. e4 {[%emt 0:02:58]} c6 {[%emt 0:00:17]} 2. d4 {[%emt 0:00:02]} d5 {[%emt 0:00:08]} 3. e5 {[%emt 0:00:01]} Bf5 {[%emt 0:00:22]} 4. Nf3 {[%emt 0:00:02]} e6 {[%emt 0:00:08]} 5. Be2 {[%emt 0:00:05]} Ne7 {[%emt 0:00:05]} 6. O-O {[%emt 0:00:18]} c5 {[%emt 0:00:46]} 7. c4 {[%emt 0:00:15]} Nbc6 {[%emt 0:00:27]} 8. dxc5 {[%emt 0:00:28] B12: Caro-Kann: Advance Variation.} d4 {[%emt 0:02:22] [#] White must now prevent ...d3.} 9. Bd3 {[%emt 0:00:11]} Bxd3 {[%emt 0:01:11]} 10. Qxd3 {[%emt 0:00:01]} Ng6 {[%emt 0:00:31]} 11. Qe4 {[%emt 0:01:41]} Bxc5 {[%emt 0:01:00]} 12. Nbd2 {[%emt 0:00:33][%cal Bb1d2,Bd2b3,Bb3c1][%mdl 32]} ({But not} 12. Bg5 Qc7 $15) 12... O-O {[%emt 0:02:49]} 13. Nb3 {[%emt 0:00:16]} Qb6 {[%emt 0:00:21]} 14. h4 {[%emt 0:02:03] With the idea h5.} h6 {[%emt 0:03:17]} 15. Bd2 {[%emt 0:06:06]} a5 {[%emt 0:00:13]} 16. Nc1 {[%emt 0:08:46]} (16. h5 $5 {[%cal Rh5g6]} Nge7 17. Rfd1 $11) 16... Bb4 {[%emt 0:04:15] [#]} 17. Rd1 $146 {[%emt 0:18:44]} ({Predecessor:} 17. Nd3 Bxd2 18. Nxd2 Nb4 19. Nxb4 Qxb4 20. Rfd1 Rfd8 21. h5 Ne7 22. b3 Nc6 23. Nf3 Qc5 24. Rd2 Rd7 25. Rad1 Rad8 26. a4 d3 27. Rxd3 {½-½ (27) Bakre,T (2457)-Sunilduth Lyna,N (2524) Bhopal 2017}) 17... Rfd8 {[%emt 0:00:47]} ({Black should try} 17... Bxd2 $15 18. Rxd2 Qc5) 18. Nd3 $11 {[%emt 0:00:42]} Bxd2 {[%emt 0:01:14]} 19. Rxd2 {[%emt 0:00:07]} Nb4 {[%emt 0:04:36]} 20. Nxb4 {[%emt 0:06:28]} Qxb4 {[%emt 0:06:37]} 21. b3 {[%emt 0:01:20]} a4 {[%emt 0:00:20]} 22. Rb1 {[%emt 0:01:27]} axb3 {[%emt 0:01:20]} 23. axb3 {[%emt 0:00:02]} Ne7 {[%emt 0:12:29]} 24. Rxd4 {[%emt 0:01:46]} Nc6 {[%emt 0:00:44]} 25. Rxd8+ {[%emt 0:00:27]} Rxd8 {[%emt 0:00:15]} 26. Kf1 {[%emt 0:09:24]} Qc3 {[%emt 0:00:39] The position is equal.} 27. Qe1 {[%emt 0:01:35]} Qc2 {[%emt 0:01:36]} 28. Qc1 {[%emt 0:02:54]} Qd3+ {[%emt 0:00:27]} 29. Kg1 {[%emt 0:00:34]} Nd4 {[%emt 0:00:11]} 30. Nxd4 {[%emt 0:00:29]} Qxd4 {[%emt 0:00:33][%mdl 4096] Endgame KQR-KQR} 31. Qe1 {[%emt 0:02:04]} Qxh4 {[%emt 0:00:29]} 32. Rd1 {[%emt 0:05:38]} Rxd1 {[%emt 0:00:25]} 33. Qxd1 {[%emt 0:00:00] KQ-KQ} Qe4 {[%emt 0:00:05]} 34. Qa1 {[%emt 0:01:20]} g5 {[%emt 0:02:03]} 35. Qc3 {[%emt 0:00:46]} Kg7 {[%emt 0:00:30]} 36. f3 {[%emt 0:05:47]} Qb1+ {[%emt 0:03:57]} 37. Kh2 {[%emt 0:02:01]} h5 {[%emt 0:00:20]} 38. Qe3 {[%emt 0:04:47]} g4 {[%emt 0:02:25]} 39. c5 {[%emt 0:05:20]} gxf3 {[%emt 0:01:41]} 40. Qxf3 {[%emt 0:00:52]} Qc2 {[%emt 0:01:32]} 41. Qf6+ {[%emt 0:05:34]} Kg8 {[%emt 0:02:21]} 42. Qg5+ {[%emt 0:00:06]} Kf8 {[%emt 0:00:12]} 43. Qd8+ {[%emt 0:00:23]} Kg7 {[%emt 0:00:07]} 44. Qf6+ {[%emt 0:00:05]} Kg8 {[%emt 0:00:11]} 45. Qg5+ {[%emt 0:00:38]} Kf8 {[%emt 0:00:06]} 46. Qd8+ {[%emt 0:03:16]} Kg7 {[%emt 0:00:10]} 47. Qf6+ {[%emt 0:00:05] Weighted Error Value: White=0.07 (flawless) /Black=0.07 (flawless)} 1/2-1/2